bitfinex/quotes_SOLUSD_20240727
["timestamp","ask_amount","ask_price","bid_price","bid_amount"]
[1722084375671,5.3472,187.02,186.96,27.8026]
[1722084376000,5.3466,187.04,186.98,11.9718]
[1722084376296,5.3467,187.03,186.98,19.0337]
[1722084376466,5.3467,187.03,186.98,6.6237]
[1722084376665,5.3467,187.03,186.98,11.9718]
[1722084377083,5.3473,187.01,186.98,6.6237]
[1722084377469,17.757,187.02,186.98,6.6237]
[1722084378471,5.3467,187.04,186.98,11.9718]
[1722084378671,12.41,187.03,186.98,11.9718]
[1722084378889,17.7568,187.03,186.98,11.9718]
[1722084379592,6.28751966,187.09,186.99,13.3694]
[1722084379817,12.41,187.07,187.02,5.3467]
[1722084380186,12.41,187.06,187.01,5.3472]
[1722084380482,12.41,187.06,186.99,13.3694]
[1722084380483,12.41,187.04,186.99,13.3694]
[1722084380691,12.41,187.05,186.99,13.3694]
[1722084380903,63.7921268,187.11,186.99,13.3694]
[1722084380904,17.7567,187.03,186.99,13.3694]
[1722084381275,12.41,187.03,186.99,18.7172]
[1722084381596,0.7904268,187.11,187.02,13.3673]
[1722084381947,12.41,187.08,187.03,15.3926]
[1722084382067,5.3458,187.06,187.03,15.3926]
[1722084382264,17.7562,187.05,187.03,15.3926]
[1722084383001,12.41,187.06,187.03,15.3926]
[1722084383486,12.41,187.05,187.03,15.3926]
[1722084383793,5.3459,187.06,187.03,15.3926]
[1722084384095,13.3619,187.1,187.03,15.3926]
[1722084384609,5.3458,187.06,187.03,15.3926]
[1722084385379,12.41,187.04,187.0,13.3683]
[1722084385591,12.41,187.04,187.0,18.7158]
[1722084385786,17.7565,187.04,187.0,13.3683]
[1722084386183,12.41,187.05,187.0,13.3683]
[1722084386384,12.41,187.05,187.01,5.3473]
[1722084386589,17.7559,187.06,187.01,5.3473]
[1722084387380,17.7564,187.04,186.99,20.7402]
[1722084387676,17.7562,187.05,187.0,45.0]
[1722084387996,12.41,187.02,186.99,15.3926]
[1722084390175,12.41,187.0,186.99,15.3926]
[1722084390992,13.3653,187.06,186.99,15.3926]
[1722084390993,12.41,187.02,186.99,15.3926]
[1722084391718,17.757,187.02,186.99,15.3926]
[1722084391999,5.3475,187.01,186.99,15.3926]
[1722084392376,12.41,187.02,186.99,15.3926]
[1722084392578,5.3475,187.0,186.99,15.3926]
[1722084393319,17.7573,187.01,186.99,15.3926]
[1722084394722,12.41,187.01,186.99,15.3926]
[1722084395090,17.7573,187.01,186.99,15.3926]
[1722084395793,17.7573,187.01,186.98,6.6237]
[1722084396214,5.3478,187.0,186.98,6.6237]
[1722084396418,17.7573,187.01,186.98,6.6237]
[1722084397495,5.3476,187.0,186.98,6.6237]
[1722084398415,5.3481,186.98,186.95,15.8554]
[1722084398603,12.41,186.97,186.95,15.8554]
[1722084398859,5.3479,186.99,186.95,15.8554]
[1722084399405,12.41,186.99,186.95,21.2044]
[1722084400722,12.41,186.99,186.95,15.8554]
[1722084400723,17.7579,186.99,186.95,15.8554]
[1722084401023,12.41,186.98,186.95,15.8554]
[1722084401232,12.41,186.98,186.95,21.2044]
[1722084401532,12.41,186.99,186.95,21.2043]
[1722084403127,17.7578,186.99,186.95,15.8554]
[1722084403330,12.41,186.97,186.95,15.8554]
[1722084403826,12.41,186.97,186.94,13.3727]
[1722084403996,12.41,186.96,186.94,13.3727]
[1722084404504,12.41,186.97,186.94,13.3727]
[1722084404924,12.41,186.97,186.95,5.3489]
[1722084405427,12.41,186.97,186.94,18.7219]
[1722084405827,12.41,186.97,186.94,13.3727]
[1722084406030,12.41,186.96,186.94,13.3727]
[1722084406324,12.41,186.96,186.93,11.8451]
[1722084406325,12.41,186.95,186.93,6.4956]
[1722084406630,12.41,186.94,186.91,13.3751]
[1722084407023,12.41,186.94,186.9,15.8554]
[1722084407229,12.41,186.93,186.9,21.2058]
[1722084407527,12.41,186.93,186.91,5.35]
[1722084407714,12.41,186.95,186.91,5.35]
[1722084408833,17.7585,186.97,186.92,5.3498]
[1722084409006,5.3482,186.98,186.92,13.3741]
[1722084409211,17.7582,186.98,186.92,13.3741]
[1722084409413,12.41,186.97,186.93,5.3495]
[1722084410021,12.41,186.97,186.94,5.3492]
[1722084410211,12.41,186.97,186.93,5.3495]
[1722084410909,5.3482,186.98,186.93,5.3495]
[1722084411110,12.41,186.97,186.93,5.3495]
[1722084411310,17.7582,186.98,186.93,5.3495]
[1722084412231,5.3485,186.97,186.92,18.7239]
[1722084413324,17.7585,186.97,186.92,18.7239]
[1722084414118,12.41,186.97,186.92,13.3741]
[1722084414328,12.41,186.98,186.93,5.3495]
[1722084414529,5.3485,186.97,186.92,18.7239]
[1722084414827,5.3482,186.98,186.92,13.3741]
[1722084415033,17.7578,186.99,186.94,5.349]
[1722084415206,17.7578,186.99,186.95,1.06967185]
[1722084415610,5.3478,186.99,186.94,5.349]
[1722084415953,17.7578,186.99,186.94,5.349]
[1722084416135,5.3482,186.98,186.94,5.349]
[1722084416631,5.3482,186.98,186.95,1.06967086]
[1722084417745,5.3482,186.98,186.94,1.06967059]
[1722084418221,5.3482,186.98,186.93,50.3495]
[1722084418931,17.7582,186.98,186.93,50.3495]
[1722084420036,12.41,186.97,186.93,50.3495]
[1722084420526,12.41,186.97,186.94,5.3492]
[1722084421238,12.41,186.98,186.95,5.3489]
[1722084421425,12.41,186.99,186.95,5.3489]
[1722084422027,12.41,186.99,186.94,13.3728]
[1722084422832,12.41,186.99,186.95,5.3489]
[1722084423032,5.3472,187.02,186.96,35.6392]
[1722084423233,19.65141966,187.08,186.96,35.6392]
[1722084423234,17.7568,187.03,186.97,45.0]
[1722084423442,5.3468,187.03,186.98,5.3479]
[1722084423627,17.7568,187.03,186.98,5.3479]
[1722084424444,22.16387265,187.08,186.99,18.7168]
[1722084424739,5.347,187.02,186.97,50.3481]
[1722084425441,17.757,187.02,186.97,50.3481]
[1722084425744,17.7568,187.03,186.98,5.348]
[1722084426233,5.3471,187.02,186.97,50.3483]
[1722084427048,5.3471,187.02,186.98,5.348]
[1722084428034,12.41,187.03,186.98,5.3481]
[1722084428035,17.7569,187.03,186.98,5.3481]
[1722084428335,5.3464,187.04,186.99,45.0]
[1722084428592,17.7564,187.04,186.99,45.0]
[1722084428919,2.57824282,187.09,186.99,57.41]
[1722084429115,14.1517268,187.11,187.01,13.3681]
[1722084429351,5.3459,187.06,187.02,5.3469]
[1722084429655,17.7559,187.06,187.01,18.7153]
[1722084430031,12.41,187.06,187.01,18.7153]
[1722084430537,17.7559,187.06,187.01,18.7153]
[1722084430927,17.7562,187.05,187.01,13.3681]
[1722084431328,17.7565,187.04,187.0,5.3475]
[1722084431850,12.41,187.04,187.0,5.3475]
[1722084432026,12.41,187.04,187.01,5.3472]
[1722084432338,12.41,187.05,187.01,5.3472]
[1722084432553,17.7562,187.05,187.0,5.3475]
[1722084432754,12.41,187.04,187.0,5.3475]
[1722084433250,12.41,187.04,187.01,5.3472]
[1722084433547,12.41,187.05,187.01,5.3472]
[1722084433720,12.41,187.02,186.98,13.3702]
[1722084433919,12.41,187.02,186.99,5.3478]
[1722084434849,12.41,187.04,187.01,5.3472]
[1722084435224,12.41,187.04,187.02,5.3469]
[1722084435950,12.41,187.04,187.01,18.7153]
[1722084436135,5.3468,187.03,186.98,18.7182]
[1722084436335,12.41,187.04,186.98,18.7182]
[1722084436336,12.41,187.01,186.98,18.7182]
[1722084436566,12.41,187.01,186.98,13.3702]
[1722084436857,12.41,187.0,186.98,13.3702]
[1722084437117,12.41,187.0,186.98,18.7183]
[1722084437432,12.41,187.0,186.98,13.3702]
[1722084437631,12.41,187.0,186.98,18.7183]
[1722084437824,12.41,187.01,186.98,18.7183]
[1722084438354,12.41,187.02,186.98,18.7183]
[1722084440330,12.41,187.01,186.98,18.7183]
[1722084440843,13.3636,187.08,186.99,5.3478]
[1722084441048,12.41,187.04,187.0,5.3475]
[1722084441527,12.41,187.05,187.0,5.3475]
[1722084441727,12.41,187.04,187.0,5.3475]
[1722084442133,12.41,187.04,187.01,5.3472]
[1722084442546,5.3459,187.06,187.01,5.3472]
[1722084442758,12.41,187.04,187.01,5.3472]
[1722084443460,12.41,187.05,187.01,5.3472]
[1722084443935,12.41,187.04,187.01,5.3472]
[1722084445642,12.41,187.02,186.97,13.371]
[1722084445846,12.41,186.99,186.97,13.371]
[1722084446056,12.41,186.99,186.97,18.7194]
[1722084446852,12.41,186.99,186.98,5.3481]
[1722084447038,12.41,187.0,186.99,5.3477]
[1722084447356,13.3645,187.07,186.99,5.3477]
[1722084447357,12.41,187.01,186.99,5.3477]
[1722084448450,12.41,187.03,187.01,5.3472]
[1722084449933,12.41,187.03,186.99,13.3691]
[1722084450254,12.41,187.02,186.99,13.3691]
[1722084451342,12.41,187.01,186.99,13.3691]
[1722084451742,12.41,187.02,186.99,18.7169]
[1722084453360,12.41,187.02,187.0,5.3475]
[1722084454562,12.41,187.02,186.99,18.7169]
[1722084455057,12.41,187.02,186.99,13.3691]
[1722084455438,12.41,187.02,187.0,5.3475]
[1722084457063,12.41,187.03,187.0,5.3475]
[1722084457955,12.41,187.03,187.01,5.3471]
[1722084460162,12.41,187.03,186.99,13.3691]
[1722084460163,12.41,187.03,187.0,5.3475]
[1722084463667,12.41,187.03,186.99,13.3691]
[1722084464052,12.41,187.03,187.0,5.3475]
[1722084464351,12.41,187.03,187.01,5.3472]
[1722084464556,12.41,187.05,187.04,13.3655]
[1722084464771,12.41,187.05,186.98,12.41]
[1722084464952,12.41,187.05,187.02,5.3469]
[1722084465273,12.41,187.04,187.02,5.3469]
[1722084466879,12.41,187.04,187.01,13.3681]
[1722084467372,5.3459,187.06,187.01,18.7153]
[1722084467545,12.41,187.04,187.01,18.7153]
[1722084469280,12.41,187.04,187.01,13.3681]
[1722084469478,12.41,187.03,186.99,50.3478]
[1722084469792,12.41,187.01,186.96,22.2681]
[1722084469977,12.41,187.0,186.96,22.2681]
[1722084470482,12.41,187.0,186.97,5.3483]
[1722084470782,12.41,187.02,186.97,13.3704]
[1722084471099,12.41,187.03,186.97,13.3704]
[1722084471390,5.3467,187.04,186.99,5.3478]
[1722084471610,12.41,187.02,186.99,5.3478]
[1722084473383,12.41,187.01,186.99,5.3478]
[1722084474193,12.41,187.02,186.99,5.3478]
[1722084475295,5.3467,187.03,186.98,5.348]
[1722084475668,12.41,187.02,186.98,5.348]
[1722084475868,12.41,187.02,186.99,5.3478]
[1722084476293,12.41,187.01,186.96,22.2681]
[1722084476598,12.41,187.01,186.97,5.3483]
[1722084477675,12.41,187.0,186.96,22.2681]
[1722084478179,12.41,186.99,186.96,22.2681]
[1722084478783,5.3473,187.01,186.96,27.6168]
[1722084478990,12.41,186.99,186.96,27.6168]
[1722084479365,12.41,186.99,186.88,16.09]
[1722084479366,12.41,186.98,186.92,19.5355]
[1722084479591,12.41,186.96,186.93,5.3493]
[1722084479796,12.41,186.96,186.92,19.5357]
[1722084479973,12.41,186.96,186.94,5.349]
[1722084480179,12.41,186.98,186.92,19.5357]
[1722084480499,12.41,186.98,186.96,5.3487]
[1722084480794,12.41,186.99,186.96,5.3486]
[1722084480997,12.41,186.98,186.96,5.3486]
[1722084481200,12.41,186.98,186.95,5.3489]
[1722084482077,12.41,186.98,186.94,18.7218]
[1722084482294,12.41,186.97,186.94,13.3726]
[1722084483579,12.41,186.97,186.94,18.7218]
[1722084484398,12.41,186.97,186.92,6.1611]
[1722084484399,12.41,186.95,186.92,6.1611]
[1722084484710,12.41,186.95,186.92,11.5109]
[1722084484903,12.41,186.95,186.92,6.1611]
[1722084485785,12.41,186.94,186.9,34.4896]
[1722084486506,12.41,186.93,186.9,34.4896]
[1722084487508,12.41,186.93,186.91,5.3501]
[1722084488008,12.41,186.94,186.91,5.3501]
[1722084488587,12.41,186.93,186.9,21.114]
[1722084489601,12.41,186.94,186.92,5.3498]
[1722084490685,12.41,186.94,186.92,18.7244]
[1722084491007,12.41,186.94,186.92,13.3746]
[1722084491308,12.41,186.93,186.9,21.1139]
[1722084492708,12.41,186.93,186.91,5.3501]
[1722084493014,12.41,186.93,186.9,21.1139]
[1722084493310,12.41,186.92,186.9,21.1139]
[1722084494610,5.3488,186.96,186.91,5.3501]
[1722084494817,12.41,186.93,186.91,5.3501]
[1722084495411,12.41,186.94,186.91,5.3501]
[1722084496212,12.41,186.94,186.92,5.3498]
[1722084496395,12.41,186.95,186.92,5.3498]
[1722084497010,12.41,186.95,186.91,5.3501]
[1722084498111,12.41,186.94,186.9,21.114]
[1722084498408,12.41,186.93,186.9,21.114]
[1722084498795,12.41,186.93,186.9,15.7636]
[1722084498978,12.41,186.92,186.9,15.7636]
[1722084499386,12.41,186.91,186.9,15.7636]
[1722084499800,12.41,186.91,186.88,6.1611]
[1722084499999,12.41,186.89,186.88,6.1611]
[1722084500185,12.41,186.89,186.88,11.5121]
[1722084500889,12.41,186.89,186.87,5.3512]
[1722084501303,12.41,186.88,186.86,18.7303]
[1722084501635,12.41,186.87,186.86,13.3788]
[1722084502293,12.41,186.87,186.84,21.9095]
[1722084502504,12.41,186.86,186.84,5.3521]
[1722084503020,12.41,186.87,186.85,5.3518]
[1722084504105,5.3504,186.9,186.85,5.3518]
[1722084504312,12.41,186.88,186.85,5.3518]
[1722084504492,12.41,186.89,186.85,5.3518]
[1722084504886,5.3504,186.9,186.86,5.3515]
[1722084505220,12.41,186.89,186.86,5.3515]
[1722084505435,5.3498,186.93,186.84,12.41]
[1722084505720,12.41,186.9,186.88,5.3507]
[1722084506430,22.4986263,186.97,186.89,13.3763]
[1722084506431,2.4986263,186.97,186.89,13.3763]
[1722084506646,12.41,186.93,186.9,5.3504]
[1722084506839,12.41,186.93,186.89,18.7269]
[1722084507518,12.41,186.92,186.89,13.3763]
[1722084507832,17.7596,186.93,186.89,13.3763]
[1722084508223,12.41,186.92,186.89,13.3763]
[1722084509612,5.3502,186.91,186.86,21.9089]
[1722084509837,12.41,186.89,186.86,16.5574]
[1722084510129,17.7607,186.89,186.86,16.5574]
[1722084510856,5.3501,186.92,186.86,16.5574]
[1722084511009,12.41,186.91,186.88,5.351]
[1722084511213,5.3497,186.93,186.87,18.7287]
[1722084511434,12.41,186.91,186.88,5.351]
[1722084512204,12.41,186.9,186.88,5.351]
[1722084512413,5.3497,186.93,186.88,5.351]
[1722084512630,12.41,186.9,186.88,5.351]
[1722084513017,12.41,186.9,186.87,13.3777]
[1722084513421,12.41,186.9,186.87,18.7289]
[1722084514025,12.41,186.89,186.87,13.3777]
[1722084514244,12.41,186.89,186.87,18.7289]
[1722084514431,12.41,186.9,186.87,18.7289]
[1722084516841,12.41,186.9,186.87,13.3777]
[1722084517340,12.41,186.89,186.87,13.3777]
[1722084517837,25.116,187.02,186.94,5.3492]
[1722084518039,25.116,187.02,186.88,57.41]
[1722084518040,5.3481,186.98,186.93,5.3494]
[1722084518392,12.41,186.99,186.96,5.3486]
[1722084518718,12.41,186.99,186.95,18.7209]
[1722084519427,12.41,186.98,186.93,21.2991]
[1722084519633,5.3487,186.96,186.93,15.9497]
[1722084519939,12.41,186.96,186.93,15.9497]
[1722084520237,12.41,186.96,186.93,21.2992]
[1722084520539,12.41,186.97,186.94,5.3492]
[1722084521038,12.41,186.97,186.93,15.9497]
[1722084521240,12.41,186.96,186.93,15.9497]
[1722084521436,12.41,186.95,186.93,15.9497]
[1722084522738,12.41,186.94,186.89,18.7271]
[1722084522924,12.41,186.93,186.89,18.7271]
[1722084523139,12.41,186.93,186.9,5.3504]
[1722084523323,12.41,186.94,186.91,5.3501]
[1722084523522,12.41,186.94,186.92,5.3497]
[1722084523795,12.41,186.94,186.89,13.3767]
[1722084524244,12.41,186.93,186.9,5.3502]
[1722084525345,12.41,186.93,186.9,6.42013663]
[1722084525546,12.41,186.93,186.9,5.3502]
[1722084526521,12.41,186.93,186.89,13.3767]
[1722084526522,12.41,186.93,186.89,18.7273]
[1722084527145,12.41,186.93,186.9,5.3504]
[1722084527342,12.41,186.93,186.89,13.3767]
[1722084527741,12.41,186.93,186.89,18.7271]
[1722084528147,12.41,186.93,186.9,5.3503]
[1722084529443,12.41,186.93,186.91,5.35]
[1722084530446,12.41,186.93,186.9,5.3504]
[1722084530864,12.41,186.93,186.89,18.7274]
[1722084531325,17.7596,186.93,186.89,18.7274]
[1722084532154,12.41,186.9,186.87,6.1879]
[1722084532331,5.3502,186.91,186.87,11.5392]
[1722084532332,12.41,186.89,186.87,11.5392]
[1722084532540,12.41,186.9,186.87,11.5392]
[1722084536232,12.41,186.88,186.85,5.3517]
[1722084536500,12.41,186.86,186.84,16.3347]
[1722084538232,12.41,186.88,186.84,16.3347]
[1722084538585,12.41,186.88,186.85,5.3518]
[1722084539175,12.41,186.89,186.86,5.3513]
[1722084539358,13.3718,186.96,186.85,13.3791]
[1722084539559,5.3498,186.93,186.88,5.351]
[1722084539867,12.41,186.92,186.88,5.351]
[1722084540554,17.7599,186.92,186.87,5.3512]
[1722084540857,5.3502,186.91,186.87,5.3512]
[1722084541234,5.3502,186.91,186.86,45.0]
[1722084541235,17.7604,186.9,186.86,50.3515]
[1722084542356,12.41,186.9,186.86,50.3515]
[1722084543451,12.41,186.9,186.87,5.3512]
[1722084544360,12.41,186.9,186.86,50.3515]
[1722084545266,12.41,186.9,186.87,5.3511]
[1722084545456,8.08446748,186.98,186.86,58.48006681]
[1722084545775,12.41,186.94,186.9,5.3504]
[1722084545947,12.41,186.94,186.91,5.3501]
[1722084546644,12.41,186.94,186.9,11.5148]
[1722084546846,5.349,186.95,186.9,11.5148]
[1722084546847,12.41,186.93,186.9,11.5148]
[1722084547162,12.41,186.93,186.91,5.35]
[1722084547459,12.41,186.94,186.91,5.35]
[1722084548359,12.41,186.93,186.9,11.5149]
[1722084548565,12.41,186.93,186.9,6.1645]
[1722084548744,17.7595,186.93,186.9,6.1645]
[1722084548941,46.7349,187.03,186.91,16.2327]
[1722084549283,12.41,186.96,186.91,29.6077]
[1722084549574,12.41,186.96,186.92,5.3498]
[1722084550046,17.7587,186.96,186.92,5.3498]
[1722084550287,17.7594,186.94,186.91,16.2327]
[1722084550444,12.41,186.93,186.91,16.2327]
[1722084551326,17.7596,186.93,186.91,16.2327]
[1722084551773,12.41,186.93,186.91,16.2327]
[1722084553353,17.7596,186.93,186.91,16.2327]
[1722084553753,5.3502,186.91,186.87,5.3511]
[1722084553950,5.3504,186.9,186.86,28.0002]
[1722084554276,17.7604,186.9,186.86,28.0002]
[1722084554500,12.41,186.9,186.87,5.3512]
[1722084555052,20.0,186.98,186.86,22.6487]
[1722084555053,12.41,186.89,186.86,22.6487]
[1722084555449,17.7607,186.89,186.86,22.6487]
[1722084555767,12.41,186.88,186.86,16.2327]
[1722084557160,12.41,186.88,186.85,5.3517]
[1722084557469,12.41,186.86,186.82,25.1502]
[1722084558251,12.41,186.86,186.83,5.3524]
[1722084559380,17.7615,186.87,186.83,5.3524]
[1722084560046,17.7615,186.87,186.82,25.1501]
[1722084560267,5.3515,186.87,186.82,25.1501]
[1722084560468,17.7615,186.87,186.82,25.1501]
[1722084561065,12.41,186.87,186.84,5.352]
[1722084561253,12.41,186.87,186.83,5.3523]
[1722084561964,17.7614,186.87,186.82,25.1501]
[1722084562175,12.41,186.86,186.82,25.1501]
[1722084565688,71.02807664,186.93,186.82,19.7975]
[1722084565859,12.41,186.88,186.84,5.352]
[1722084566571,12.41,186.87,186.84,5.352]
[1722084570370,12.41,186.88,186.84,5.352]
[1722084571074,12.41,186.87,186.83,5.3524]
[1722084571689,17.7613,186.87,186.83,5.3524]
[1722084571860,17.7613,186.87,186.82,25.1501]
[1722084573583,5.3513,186.87,186.83,5.3524]
[1722084573789,17.7613,186.87,186.83,5.3524]
[1722084574373,12.41,186.87,186.83,5.3524]
[1722084574763,12.41,186.88,186.84,5.3521]
[1722084574964,2.41132474,186.93,186.82,6.416]
[1722084575177,23.5999,187.0,186.82,6.416]
[1722084575178,12.41,186.9,186.86,5.3513]
[1722084575361,17.7605,186.9,186.85,5.3518]
[1722084576480,5.3508,186.89,186.85,5.3518]
[1722084576986,5.3508,186.89,186.84,18.7317]
[1722084577289,17.7608,186.89,186.85,45.0]
[1722084579096,5.35,186.92,186.85,45.0]
[1722084579271,12.41,186.9,186.86,18.7301]
[1722084579459,5.3504,186.9,186.86,13.3786]
[1722084579670,5.3496,186.93,186.89,5.3505]
[1722084580000,5.3496,186.93,186.89,11.5453]
[1722084580170,5.3496,186.93,186.89,6.1948]
[1722084580504,12.41,186.93,186.89,6.1948]
[1722084580677,5.3502,186.91,186.89,6.1948]
[1722084580878,5.3499,186.92,186.89,6.1948]
[1722084582299,5.60096556,186.99,186.89,6.1948]
[1722084582593,17.7589,186.96,186.91,18.725]
[1722084582799,12.41,186.95,186.91,13.3751]
[1722084583368,12.41,186.96,186.91,13.3751]
[1722084583591,5.349,186.95,186.91,13.3751]
[1722084583790,5.349,186.95,186.91,18.7252]
[1722084583986,5.3494,186.94,186.89,23.9552]
[1722084584169,5.3494,186.94,186.89,11.5452]
[1722084584599,5.3493,186.95,186.89,6.1948]
[1722084584782,12.41,186.94,186.89,6.1948]
[1722084585091,12.41,186.94,186.9,5.3503]
[1722084585324,17.7593,186.95,186.9,5.3503]
[1722084585495,5.3493,186.94,186.9,5.3503]
[1722084586081,5.3493,186.94,186.89,11.5455]
[1722084587089,17.7593,186.94,186.89,11.5455]
[1722084589811,12.41,186.9,186.87,16.0803]
[1722084590096,17.7607,186.89,186.87,16.0803]
[1722084590602,12.41,186.89,186.87,16.0803]
[1722084591303,5.3504,186.9,186.87,16.0803]
[1722084591304,17.7604,186.9,186.87,16.0803]
[1722084591477,33.3719,186.96,186.87,16.0803]
[1722084591478,12.41,186.91,186.87,16.0803]
[1722084591808,13.3719,186.96,186.87,16.0803]
[1722084591809,12.41,186.89,186.87,16.0803]
[1722084592102,12.41,186.88,186.87,16.0803]
[1722084592492,12.41,186.89,186.87,16.0803]
[1722084592700,12.41,186.9,186.87,16.0803]
[1722084593004,5.3502,186.91,186.87,21.4314]
[1722084593187,12.41,186.93,186.89,5.3505]
[1722084593389,17.7593,186.94,186.89,5.3505]
[1722084594504,5.3497,186.93,186.88,13.3771]
[1722084594901,12.41,186.93,186.88,18.7281]
[1722084595106,17.7596,186.93,186.89,5.3507]
[1722084595278,12.41,186.93,186.9,5.3504]
[1722084595677,5.3482,186.98,186.93,13.3739]
[1722084595940,60.35617038,187.02,186.93,18.7232]
[1722084595941,5.3484,186.97,186.93,18.7232]
[1722084596090,17.7584,186.97,186.93,18.7232]
[1722084596488,5.3484,186.97,186.93,18.7232]
[1722084596991,5.3479,186.99,186.94,20.352]
[1722084597199,12.41,186.98,186.94,20.352]
[1722084597482,5.3481,186.98,186.94,20.352]
[1722084597698,5.3481,186.98,186.94,15.0028]
[1722084598485,17.7581,186.98,186.94,15.0028]
[1722084600308,5.3484,186.97,186.94,15.0028]
[1722084600529,17.7584,186.97,186.94,15.0028]
[1722084601084,12.41,186.97,186.94,15.0028]
[1722084601289,13.3688,187.01,186.94,15.0028]
[1722084601290,17.759,186.95,186.94,15.0028]
[1722084602393,12.41,186.95,186.94,15.0028]
[1722084602596,17.7588,186.96,186.94,15.0028]
[1722084602895,5.3488,186.96,186.94,15.0028]
[1722084603680,17.7585,186.97,186.94,15.0028]
[1722084604360,17.7588,186.96,186.94,15.0028]
[1722084604487,5.349,186.95,186.94,15.0028]
[1722084604687,17.7587,186.96,186.94,15.0028]
[1722084605202,5.349,186.95,186.94,15.0028]
[1722084606309,12.41,186.96,186.94,15.0028]
[1722084606811,5.3481,186.98,186.94,15.0028]
[1722084607106,17.7581,186.98,186.94,15.0028]
[1722084607308,5.3478,187.0,186.94,20.352]
[1722084607515,12.41,186.99,186.95,5.3489]
[1722084607708,12.41,186.96,186.91,6.3782]
[1722084608019,17.7592,186.95,186.91,6.3782]
[1722084608512,17.7588,186.96,186.91,11.7283]
[1722084608691,5.3485,186.97,186.92,5.3497]
[1722084608893,17.7582,186.98,186.93,5.3495]
[1722084611520,17.7582,186.98,186.94,5.3492]
[1722084612808,17.7582,186.98,186.93,5.3495]
[1722084614121,17.7582,186.98,186.94,5.3492]
[1722084614305,12.41,186.96,186.91,19.7532]
[1722084614508,12.41,186.96,186.93,5.3495]
[1722084615012,12.41,186.96,186.91,25.103]
[1722084615220,17.7588,186.96,186.91,25.103]
[1722084615399,12.41,186.95,186.92,5.3497]
[1722084616418,12.41,186.96,186.93,5.3495]
[1722084618079,17.7587,186.96,186.92,5.3498]
[1722084618321,12.41,186.95,186.92,5.3498]
[1722084618618,17.759,186.95,186.91,25.1032]
[1722084618794,12.41,186.92,186.89,21.2428]
[1722084618995,12.41,186.92,186.89,15.8924]
[1722084620605,12.41,186.91,186.88,18.7283]
[1722084624107,12.41,186.89,186.85,29.2719]
[1722084624320,12.41,186.87,186.85,34.6235]
[1722084624712,12.41,186.88,186.85,34.6235]
[1722084625305,12.41,186.88,186.86,5.3515]
[1722084626600,12.41,186.89,186.86,5.3515]
[1722084626828,5.3504,186.9,186.86,5.3515]
[1722084627024,5.3504,186.9,186.85,34.6237]
[1722084627420,12.41,186.89,186.85,34.6237]
[1722084627602,12.41,186.9,186.87,5.3513]